[Event "*** SCC Grand Prix: Titled Tuesday Blitz"]
[Site "Chess.com"]
[Date "2020.06.02"]
[Round "3"]
[White "ega2006"]
[Black "marszach123"]
[Result "1-0"]
[WhiteElo "2381"]
[BlackElo "2150"]
[TimeControl "180+1"]
[EndTime "10:29:04 PDT"]
[Termination "ega2006 won on time"]

1. e4 {[%clk 0:03:00.3]} 1... c5 {[%clk 0:03:00.4]} 2. Nf3 {[%clk 0:02:59.2]}
2... d6 {[%clk 0:03:00.7]} 3. Bb5+ {[%clk 0:02:52.2]} 3... Nd7 {[%clk
0:02:59.5]} 4. d4 {[%clk 0:02:51.6]} 4... a6 {[%clk 0:02:58.7]} 5. Be2 {[%clk
0:02:49.7]} 5... Ngf6 {[%clk 0:02:49.1]} 6. Nc3 {[%clk 0:02:48.9]} 6... cxd4
{[%clk 0:02:37.7]} 7. Qxd4 {[%clk 0:02:49.8]} 7... e5 {[%clk 0:02:34.5]} 8. Qd1
{[%clk 0:02:46.8]} 8... Be7 {[%clk 0:02:34.4]} 9. O-O {[%clk 0:02:46.4]} 9...
O-O {[%clk 0:02:34.3]} 10. Bg5 {[%clk 0:02:45.8]} 10... h6 {[%clk 0:02:33.1]}
11. Bxf6 {[%clk 0:02:39.5]} 11... Nxf6 {[%clk 0:02:32.8]} 12. a4 {[%clk
0:02:38.5]} 12... Be6 {[%clk 0:02:30.7]} 13. a5 {[%clk 0:02:30.3]} 13... b5
{[%clk 0:02:27.3]} 14. axb6 {[%clk 0:02:29.7]} 14... Qxb6 {[%clk 0:02:27.2]} 15.
b3 {[%clk 0:02:20.6]} 15... Rfd8 {[%clk 0:02:15.8]} 16. Nd2 {[%clk 0:02:16.3]}
16... d5 {[%clk 0:02:12.9]} 17. exd5 {[%clk 0:02:15.6]} 17... Nxd5 {[%clk
0:02:12.8]} 18. Nxd5 {[%clk 0:02:14.3]} 18... Bxd5 {[%clk 0:02:08.9]} 19. Qc1
{[%clk 0:02:11]} 19... Bg5 {[%clk 0:02:04.3]} 20. Rd1 {[%clk 0:02:02.6]} 20...
Bb7 {[%clk 0:02:02.2]} 21. Nc4 {[%clk 0:01:54.2]} 21... Qc6 {[%clk 0:01:49.6]}
22. Rxd8+ {[%clk 0:01:29.1]} 22... Rxd8 {[%clk 0:01:46.2]} 23. Qf1 {[%clk
0:01:30]} 23... Qc5 {[%clk 0:01:24.7]} 24. Ra5 {[%clk 0:01:20]} 24... Qb4 {[%clk
0:01:06]} 25. Rxe5 {[%clk 0:01:13.5]} 25... Bd5 {[%clk 0:00:55.3]} 26. Ne3
{[%clk 0:01:02.3]} 26... Bb7 {[%clk 0:00:33.9]} 27. Nc4 {[%clk 0:00:46.7]} 27...
Bd5 {[%clk 0:00:25.6]} 28. Bd3 {[%clk 0:00:31.5]} 28... Bf4 {[%clk 0:00:14.5]}
29. Rf5 {[%clk 0:00:30.2]} 29... Bb8 {[%clk 0:00:11.8]} 30. Ne3 {[%clk
0:00:29.6]} 30... Be6 {[%clk 0:00:11]} 31. Rh5 {[%clk 0:00:27.8]} 31... Qf4
{[%clk 0:00:06.1]} 32. g3 {[%clk 0:00:15.6]} 32... Qf3 {[%clk 0:00:05.7]} 33.
Rh4 {[%clk 0:00:14.2]} 33... Be5 {[%clk 0:00:03]} 34. Qg2 {[%clk 0:00:12]} 34...
Qf6 {[%clk 0:00:01.9]} 35. Ra4 {[%clk 0:00:11.5]} 35... Bc3 {[%clk 0:00:01.6]}
36. Rxa6 {[%clk 0:00:10.5]} 1-0

[Event "*** SCC Grand Prix: Titled Tuesday Blitz"]
[Site "Chess.com"]
[Date "2020.06.02"]
[Round "3"]
[White "Reader777"]
[Black "hongnhung1234"]
[Result "1/2-1/2"]
[WhiteElo "2594"]
[BlackElo "2224"]
[TimeControl "180+1"]
[EndTime "10:29:05 PDT"]
[Termination "Game drawn - insufficient material"]

1. d4 {[%clk 0:03:00.9]} 1... f5 {[%clk 0:02:59.9]} 2. c4 {[%clk 0:03:01.1]}
2... Nf6 {[%clk 0:03:00]} 3. Nc3 {[%clk 0:03:01.2]} 3... g6 {[%clk 0:03:00.4]}
4. h4 {[%clk 0:03:00.7]} 4... Bg7 {[%clk 0:02:56.3]} 5. h5 {[%clk 0:03:00.6]}
5... Nxh5 {[%clk 0:02:55.9]} 6. e4 {[%clk 0:03:00.6]} 6... d6 {[%clk 0:02:52.1]}
7. exf5 {[%clk 0:02:57.6]} 7... Bxf5 {[%clk 0:02:51.7]} 8. g4 {[%clk 0:02:54.7]}
8... Bxg4 {[%clk 0:02:46]} 9. Qxg4 {[%clk 0:02:53.4]} 9... Nf6 {[%clk
0:02:46.3]} 10. Qd1 {[%clk 0:02:53]} 10... Nc6 {[%clk 0:02:45.4]} 11. Be3 {[%clk
0:02:49.7]} 11... e5 {[%clk 0:02:45.1]} 12. d5 {[%clk 0:02:48.1]} 12... Ne7
{[%clk 0:02:42.6]} 13. Bd3 {[%clk 0:02:46.9]} 13... Qd7 {[%clk 0:02:40.3]} 14.
Nge2 {[%clk 0:02:46.2]} 14... O-O-O {[%clk 0:02:39.6]} 15. Qb3 {[%clk
0:02:39.2]} 15... Nf5 {[%clk 0:02:32.1]} 16. Bxa7 {[%clk 0:02:24.2]} 16... e4
{[%clk 0:02:08.1]} 17. Nxe4 {[%clk 0:02:13.6]} 17... Nxe4 {[%clk 0:02:07.9]} 18.
Bxe4 {[%clk 0:02:14.1]} 18... b6 {[%clk 0:02:08.2]} 19. a4 {[%clk 0:01:44.6]}
19... Rde8 {[%clk 0:01:50.1]} 20. f3 {[%clk 0:01:44]} 20... Nd4 {[%clk
0:01:11.1]} 21. Nxd4 {[%clk 0:01:40.8]} 21... Bxd4 {[%clk 0:01:12]} 22. a5
{[%clk 0:01:24.9]} 22... Kb7 {[%clk 0:01:03.2]} 23. axb6 {[%clk 0:01:24.2]}
23... cxb6 {[%clk 0:01:00.8]} 24. Bxb6 {[%clk 0:00:47.6]} 24... Bxb6 {[%clk
0:00:56.9]} 25. c5 {[%clk 0:00:47.7]} 25... dxc5 {[%clk 0:00:56.8]} 26. d6+
{[%clk 0:00:47]} 26... Rxe4+ {[%clk 0:00:56.6]} 27. fxe4 {[%clk 0:00:47.3]}
27... Qxd6 {[%clk 0:00:48.1]} 28. Qd5+ {[%clk 0:00:46.3]} 28... Qxd5 {[%clk
0:00:47]} 29. exd5 {[%clk 0:00:47.1]} 29... h5 {[%clk 0:00:45.8]} 30. O-O-O
{[%clk 0:00:45.9]} 30... g5 {[%clk 0:00:41.5]} 31. Rdg1 {[%clk 0:00:45.5]} 31...
Bc7 {[%clk 0:00:33.9]} 32. Kc2 {[%clk 0:00:42.8]} 32... Bf4 {[%clk 0:00:31.6]}
33. Kd3 {[%clk 0:00:42.9]} 33... Kc7 {[%clk 0:00:28.7]} 34. Kc4 {[%clk
0:00:42.3]} 34... h4 {[%clk 0:00:27.3]} 35. Re1 {[%clk 0:00:38.7]} 35... Rb8
{[%clk 0:00:21.6]} 36. Kxc5 {[%clk 0:00:31.7]} 36... Bd6+ {[%clk 0:00:19.8]} 37.
Kc4 {[%clk 0:00:31.4]} 37... Rxb2 {[%clk 0:00:20.7]} 38. Rhg1 {[%clk 0:00:25.9]}
38... g4 {[%clk 0:00:20.5]} 39. Re4 {[%clk 0:00:21.4]} 39... Rb4+ {[%clk
0:00:18.4]} 40. Kd3 {[%clk 0:00:21.4]} 40... Rxe4 {[%clk 0:00:18.1]} 41. Kxe4
{[%clk 0:00:21.8]} 41... g3 {[%clk 0:00:18.4]} 42. Kf3 {[%clk 0:00:19.7]} 42...
h3 {[%clk 0:00:18.3]} 43. Rxg3 {[%clk 0:00:10.6]} 43... Bxg3 {[%clk 0:00:19.2]}
44. Kxg3 {[%clk 0:00:11]} 44... Kd6 {[%clk 0:00:19.7]} 45. Kxh3 {[%clk 0:00:11]}
45... Kxd5 {[%clk 0:00:20.6]} 1/2-1/2

[Event "*** SCC Grand Prix: Titled Tuesday Blitz"]
[Site "Chess.com"]
[Date "2020.06.02"]
[Round "3"]
[White "RianKapriaga"]
[Black "boasovietica"]
[Result "0-1"]
[WhiteElo "2189"]
[BlackElo "2435"]
[TimeControl "180+1"]
[EndTime "10:29:05 PDT"]
[Termination "boasovietica won on time"]

1. d4 {[%clk 0:03:00.9]} 1... Nf6 {[%clk 0:02:59.4]} 2. Nf3 {[%clk 0:03:00.9]}
2... g6 {[%clk 0:02:58.7]} 3. c4 {[%clk 0:02:58]} 3... Bg7 {[%clk 0:02:58.6]} 4.
Nc3 {[%clk 0:02:56.6]} 4... O-O {[%clk 0:02:58.6]} 5. e4 {[%clk 0:02:55.4]} 5...
d6 {[%clk 0:02:59]} 6. h3 {[%clk 0:02:54.8]} 6... c5 {[%clk 0:02:55.4]} 7. d5
{[%clk 0:02:53.6]} 7... b5 {[%clk 0:02:39.1]} 8. cxb5 {[%clk 0:02:50.3]} 8... a6
{[%clk 0:02:38.9]} 9. b6 {[%clk 0:02:44.4]} 9... Nbd7 {[%clk 0:02:36.9]} 10. Be2
{[%clk 0:02:43.7]} 10... Nxb6 {[%clk 0:02:36.2]} 11. O-O {[%clk 0:02:43.8]}
11... Rb8 {[%clk 0:02:32.3]} 12. Nd2 {[%clk 0:02:43.4]} 12... Qc7 {[%clk
0:02:27.2]} 13. Nc4 {[%clk 0:02:43.6]} 13... Nxc4 {[%clk 0:02:27]} 14. Bxc4
{[%clk 0:02:44.3]} 14... Qb7 {[%clk 0:02:19.3]} 15. Qe2 {[%clk 0:02:43]} 15...
Bd7 {[%clk 0:02:08.8]} 16. Bxa6 {[%clk 0:02:39.2]} 16... Qa7 {[%clk 0:02:08.6]}
17. Bb5 {[%clk 0:02:33.5]} 17... Nxe4 {[%clk 0:01:47.1]} 18. Qxe4 {[%clk
0:02:20.4]} 18... Bxb5 {[%clk 0:01:45.8]} 19. Re1 {[%clk 0:02:13.4]} 19... Rfe8
{[%clk 0:01:41.9]} 20. Bg5 {[%clk 0:02:12.8]} 20... Bd7 {[%clk 0:01:34.1]} 21.
Qh4 {[%clk 0:02:03.8]} 21... Rxb2 {[%clk 0:01:29.5]} 22. Ne4 {[%clk 0:01:57]}
22... f6 {[%clk 0:01:24.3]} 23. Bh6 {[%clk 0:01:44.5]} 23... Rxa2 {[%clk
0:01:13.7]} 24. Rxa2 {[%clk 0:01:38]} 24... Qxa2 {[%clk 0:01:14.6]} 25. Bxg7
{[%clk 0:01:35.6]} 25... Kxg7 {[%clk 0:01:14.4]} 26. Nc3 {[%clk 0:01:26.9]}
26... Qd2 {[%clk 0:01:09.9]} 27. Re3 {[%clk 0:01:19.3]} 27... Qd4 {[%clk
0:01:09.2]} 28. Qg3 {[%clk 0:01:14.5]} 28... f5 {[%clk 0:01:05.6]} 29. Qf3
{[%clk 0:01:06.3]} 29... Qf6 {[%clk 0:01:00.7]} 30. g3 {[%clk 0:01:01.3]} 30...
Ra8 {[%clk 0:01:00.2]} 31. h4 {[%clk 0:00:59.9]} 31... Ra1+ {[%clk 0:00:59.6]}
32. Kg2 {[%clk 0:00:58.9]} 32... h6 {[%clk 0:00:59.7]} 33. Qe2 {[%clk
0:00:56.2]} 33... Kf7 {[%clk 0:00:57.1]} 34. Qb2 {[%clk 0:00:53.2]} 34... Ra7
{[%clk 0:00:46.8]} 35. Qb6 {[%clk 0:00:51.8]} 35... Ra3 {[%clk 0:00:44.5]} 36.
Ne4 {[%clk 0:00:41.3]} 36... fxe4 {[%clk 0:00:35.2]} 37. Rxa3 {[%clk 0:00:39.8]}
37... Bg4 {[%clk 0:00:34.4]} 38. Qb8 {[%clk 0:00:24.9]} 38... Bf3+ {[%clk
0:00:33.7]} 39. Kh2 {[%clk 0:00:23]} 39... Qd4 {[%clk 0:00:30]} 40. Rxf3+ {[%clk
0:00:10.6]} 40... exf3 {[%clk 0:00:29.7]} 41. Kg1 {[%clk 0:00:10.5]} 41... Qd1+
{[%clk 0:00:29]} 42. Kh2 {[%clk 0:00:10.9]} 42... Qe2 {[%clk 0:00:29.2]} 43. Qb2
{[%clk 0:00:04.3]} 43... Qxb2 {[%clk 0:00:28]} 0-1

[Event "*** SCC Grand Prix: Titled Tuesday Blitz"]
[Site "Chess.com"]
[Date "2020.06.02"]
[Round "3"]
[White "lidiyato"]
[Black "MarceloPlaya"]
[Result "1-0"]
[WhiteElo "2117"]
[BlackElo "2307"]
[TimeControl "180+1"]
[EndTime "10:29:05 PDT"]
[Termination "lidiyato won on time"]

1. e4 {[%clk 0:03:00.9]} 1... e6 {[%clk 0:02:38]} 2. d4 {[%clk 0:03:00.6]} 2...
d5 {[%clk 0:02:37.1]} 3. e5 {[%clk 0:02:57.5]} 3... c5 {[%clk 0:02:36.3]} 4. c3
{[%clk 0:02:50.2]} 4... Nc6 {[%clk 0:02:34.9]} 5. a3 {[%clk 0:02:49.8]} 5... f6
{[%clk 0:02:33.2]} 6. Nf3 {[%clk 0:01:51.4]} 6... Qc7 {[%clk 0:02:19]} 7. Bb5
{[%clk 0:01:44.4]} 7... f5 {[%clk 0:02:14.2]} 8. O-O {[%clk 0:01:41.1]} 8... Bd7
{[%clk 0:02:11.7]} 9. Bd3 {[%clk 0:01:14.1]} 9... c4 {[%clk 0:02:07.7]} 10. Bc2
{[%clk 0:01:14.2]} 10... Nge7 {[%clk 0:02:02.6]} 11. b3 {[%clk 0:01:12.8]} 11...
cxb3 {[%clk 0:02:00.2]} 12. Bxb3 {[%clk 0:01:11.8]} 12... Ng6 {[%clk 0:01:58.3]}
13. c4 {[%clk 0:01:05.2]} 13... dxc4 {[%clk 0:01:53.6]} 14. Bxc4 {[%clk
0:01:04.9]} 14... Be7 {[%clk 0:01:46.6]} 15. Nbd2 {[%clk 0:00:42.6]} 15... O-O
{[%clk 0:01:21.5]} 16. Bb2 {[%clk 0:00:36.5]} 16... Rfd8 {[%clk 0:01:14.6]} 17.
Qb3 {[%clk 0:00:29.5]} 17... Nf8 {[%clk 0:01:11.2]} 18. Qa2 {[%clk 0:00:18.4]}
18... Na5 {[%clk 0:01:06.2]} 19. Rac1 {[%clk 0:00:17.3]} 19... Rac8 {[%clk
0:01:01.4]} 20. d5 {[%clk 0:00:16.3]} 20... Nxc4 {[%clk 0:00:58.7]} 21. Rxc4
{[%clk 0:00:16.3]} 21... Qb6 {[%clk 0:00:56]} 22. d6 {[%clk 0:00:16.6]} 22...
Bh4 {[%clk 0:00:52.4]} 23. Nxh4 {[%clk 0:00:16]} 23... Rxc4 {[%clk 0:00:51.8]}
24. Nxc4 {[%clk 0:00:15.7]} 24... Qa6 {[%clk 0:00:49.3]} 25. Nf3 {[%clk
0:00:16.2]} 25... Bb5 {[%clk 0:00:48.3]} 26. Rc1 {[%clk 0:00:16.1]} 26... h6
{[%clk 0:00:45.7]} 27. Ne3 {[%clk 0:00:15.3]} 27... g5 {[%clk 0:00:42.8]} 28.
Nd4 {[%clk 0:00:15.3]} 28... Bd7 {[%clk 0:00:41.9]} 29. Nexf5 {[%clk 0:00:15.3]}
29... Qa4 {[%clk 0:00:36.9]} 30. Ne7+ {[%clk 0:00:15.2]} 30... Kh8 {[%clk
0:00:35.2]} 31. h4 {[%clk 0:00:12.3]} 31... Nh7 {[%clk 0:00:30]} 32. Nf3 {[%clk
0:00:08.5]} 32... Rf8 {[%clk 0:00:27]} 33. Ng6+ {[%clk 0:00:07.2]} 33... Kg7
{[%clk 0:00:25.2]} 34. Nxf8 {[%clk 0:00:08.1]} 34... Nxf8 {[%clk 0:00:24.6]} 35.
Qc4 {[%clk 0:00:09]} 35... Qa5 {[%clk 0:00:20]} 36. Qc7 {[%clk 0:00:07.9]} 36...
Kg6 {[%clk 0:00:18.2]} 37. Qxa5 {[%clk 0:00:07.7]} 1-0

[Event "*** SCC Grand Prix: Titled Tuesday Blitz"]
[Site "Chess.com"]
[Date "2020.06.02"]
[Round "3"]
[White "Djager97"]
[Black "IwkooO"]
[Result "1-0"]
[WhiteElo "2386"]
[BlackElo "2557"]
[TimeControl "180+1"]
[EndTime "10:29:06 PDT"]
[Termination "Djager97 won by checkmate"]

1. e4 {[%clk 0:03:00.9]} 1... c5 {[%clk 0:02:59.7]} 2. Nf3 {[%clk 0:03:00.8]}
2... e6 {[%clk 0:02:59.3]} 3. d4 {[%clk 0:03:00.9]} 3... cxd4 {[%clk 0:02:59.4]}
4. Nxd4 {[%clk 0:03:01.8]} 4... Nc6 {[%clk 0:03:00]} 5. Nc3 {[%clk 0:02:50.8]}
5... a6 {[%clk 0:03:00.2]} 6. Be3 {[%clk 0:02:50.2]} 6... Nf6 {[%clk 0:02:57.2]}
7. Qf3 {[%clk 0:02:49.6]} 7... Bb4 {[%clk 0:02:46.9]} 8. Nxc6 {[%clk 0:02:27.5]}
8... bxc6 {[%clk 0:02:36.6]} 9. Bd3 {[%clk 0:02:18.4]} 9... d5 {[%clk
0:02:33.4]} 10. exd5 {[%clk 0:01:52.3]} 10... cxd5 {[%clk 0:02:27.9]} 11. Bd4
{[%clk 0:01:52.2]} 11... O-O {[%clk 0:02:07.9]} 12. O-O-O {[%clk 0:01:44.2]}
12... Bb7 {[%clk 0:02:01.8]} 13. Rhe1 {[%clk 0:01:39.1]} 13... Qe7 {[%clk
0:01:40.3]} 14. g4 {[%clk 0:01:23.5]} 14... Bxc3 {[%clk 0:01:34.2]} 15. bxc3
{[%clk 0:01:18.3]} 15... Ne4 {[%clk 0:01:25.2]} 16. Qe3 {[%clk 0:00:58.9]} 16...
Qa3+ {[%clk 0:01:21.5]} 17. Kb1 {[%clk 0:00:56.3]} 17... Bc6 {[%clk 0:01:21.6]}
18. Ka1 {[%clk 0:00:46]} 18... Rab8 {[%clk 0:01:15.7]} 19. Rb1 {[%clk
0:00:44.9]} 19... Nxc3 {[%clk 0:01:15.9]} 20. Bxh7+ {[%clk 0:00:43.4]} 20...
Kxh7 {[%clk 0:01:11.2]} 21. Bxc3 {[%clk 0:00:33.6]} 21... Bb5 {[%clk 0:00:24.4]}
22. Qd4 {[%clk 0:00:33.2]} 22... f6 {[%clk 0:00:23.4]} 23. Rb3 {[%clk
0:00:18.1]} 23... Qa4 {[%clk 0:00:20.6]} 24. Rb4 {[%clk 0:00:15.8]} 24... Qa3
{[%clk 0:00:20.8]} 25. Bb2 {[%clk 0:00:10.3]} 25... Qf3 {[%clk 0:00:18.7]} 26.
g5 {[%clk 0:00:08.4]} 26... Bc4 {[%clk 0:00:09.1]} 27. Rxb8 {[%clk 0:00:07.8]}
27... Rxb8 {[%clk 0:00:09.1]} 28. gxf6 {[%clk 0:00:08.5]} 28... gxf6 {[%clk
0:00:09.4]} 29. Qh4+ {[%clk 0:00:05]} 29... Kg6 {[%clk 0:00:03.1]} 30. Rg1+
{[%clk 0:00:04.9]} 30... Kf5 {[%clk 0:00:03.7]} 31. Qd4 {[%clk 0:00:02]} 31...
e5 {[%clk 0:00:03.6]} 32. Qd2 {[%clk 0:00:02]} 32... Qf4 {[%clk 0:00:02.7]} 33.
Qc3 {[%clk 0:00:01.9]} 33... Rb5 {[%clk 0:00:01.8]} 34. Qh3+ {[%clk 0:00:02.4]}
34... Qg4 {[%clk 0:00:02.1]} 35. Qxg4# {[%clk 0:00:02.9]} 1-0

[Event "*** SCC Grand Prix: Titled Tuesday Blitz"]
[Site "Chess.com"]
[Date "2020.06.02"]
[Round "3"]
[White "Reality-Stone"]
[Black "garicradomir"]
[Result "1-0"]
[WhiteElo "2500"]
[BlackElo "2270"]
[TimeControl "180+1"]
[EndTime "10:29:06 PDT"]
[Termination "Reality-Stone won by resignation"]

1. d4 {[%clk 0:03:00.9]} 1... c5 {[%clk 0:02:59.7]} 2. d5 {[%clk 0:02:59.6]}
2... Nf6 {[%clk 0:03:00]} 3. c4 {[%clk 0:02:59.2]} 3... b5 {[%clk 0:02:58.1]} 4.
Qc2 {[%clk 0:02:55]} 4... bxc4 {[%clk 0:02:51.8]} 5. e4 {[%clk 0:02:53]} 5... d6
{[%clk 0:02:47.1]} 6. Bxc4 {[%clk 0:02:51.6]} 6... g6 {[%clk 0:02:46.2]} 7. Nf3
{[%clk 0:02:51.5]} 7... Bg7 {[%clk 0:02:46.5]} 8. O-O {[%clk 0:02:51.7]} 8...
O-O {[%clk 0:02:46.6]} 9. Nc3 {[%clk 0:02:52.1]} 9... Nbd7 {[%clk 0:02:45.5]}
10. h3 {[%clk 0:02:49.9]} 10... Nb6 {[%clk 0:02:45.3]} 11. Bb5 {[%clk 0:02:44]}
11... Bd7 {[%clk 0:02:43.3]} 12. a4 {[%clk 0:02:43]} 12... a6 {[%clk 0:02:38.8]}
13. Be2 {[%clk 0:02:36.7]} 13... Qc7 {[%clk 0:02:35.4]} 14. Bf4 {[%clk
0:02:35.5]} 14... Nh5 {[%clk 0:02:32.4]} 15. Bh2 {[%clk 0:02:34.8]} 15... f5
{[%clk 0:02:32]} 16. a5 {[%clk 0:02:34]} 16... Nc8 {[%clk 0:02:29.7]} 17. Ng5
{[%clk 0:02:23.3]} 17... f4 {[%clk 0:02:08.3]} 18. Bxh5 {[%clk 0:02:21.7]} 18...
gxh5 {[%clk 0:02:09.2]} 19. Ne6 {[%clk 0:02:15.1]} 19... Bxe6 {[%clk 0:02:08.7]}
20. dxe6 {[%clk 0:02:16]} 20... Rb8 {[%clk 0:01:53.5]} 21. Nd5 {[%clk
0:02:13.9]} 21... Qb7 {[%clk 0:01:53.3]} 22. Qe2 {[%clk 0:02:04.5]} 22... Qxb2
{[%clk 0:01:50.4]} 23. Qxh5 {[%clk 0:02:02.5]} 23... Qe5 {[%clk 0:01:49.6]} 24.
Qg4 {[%clk 0:01:54.3]} 24... Qxe4 {[%clk 0:01:41.8]} 25. Rad1 {[%clk 0:01:49.3]}
25... Qf5 {[%clk 0:01:36.1]} 26. Qxf5 {[%clk 0:01:46.2]} 26... Rxf5 {[%clk
0:01:33.3]} 27. Bxf4 {[%clk 0:01:41.7]} 27... Bd4 {[%clk 0:01:27.4]} 28. Nxe7+
{[%clk 0:01:18.3]} 28... Nxe7 {[%clk 0:01:25.6]} 29. Bxd6 {[%clk 0:01:18.6]}
29... Rb7 {[%clk 0:01:21.6]} 30. g4 {[%clk 0:00:57.9]} 30... Rd5 {[%clk
0:01:17.9]} 31. Bg3 {[%clk 0:00:49.4]} 31... Rb3 {[%clk 0:01:12.9]} 32. Kg2
{[%clk 0:00:47.7]} 32... h5 {[%clk 0:01:06.4]} 33. f4 {[%clk 0:00:46.9]} 33...
Rb2+ {[%clk 0:01:04.4]} 34. Kf3 {[%clk 0:00:46.5]} 34... Rb3+ {[%clk 0:00:57]}
35. Kg2 {[%clk 0:00:44.8]} 35... Ng6 {[%clk 0:00:52.5]} 36. f5 {[%clk
0:00:42.7]} 36... h4 {[%clk 0:00:52.3]} 37. fxg6 {[%clk 0:00:38.8]} 37... Rxg3+
{[%clk 0:00:51.2]} 38. Kh2 {[%clk 0:00:38.4]} 38... Bg1+ {[%clk 0:00:44.9]} 39.
Rxg1 {[%clk 0:00:35.8]} 39... Re5 {[%clk 0:00:32.3]} 40. Rge1 {[%clk 0:00:33.4]}
40... Rge3 {[%clk 0:00:29.6]} 41. Rxe3 {[%clk 0:00:30.1]} 41... Rxe3 {[%clk
0:00:30.5]} 42. Rd6 {[%clk 0:00:29.7]} 42... Re2+ {[%clk 0:00:29.3]} 43. Kg1
{[%clk 0:00:29.3]} 43... c4 {[%clk 0:00:28.9]} 44. Rxa6 {[%clk 0:00:28.8]} 44...
c3 {[%clk 0:00:28.9]} 45. Kf1 {[%clk 0:00:25.3]} 45... c2 {[%clk 0:00:25.9]} 46.
Rc6 {[%clk 0:00:23.4]} 46... Rxe6 {[%clk 0:00:14.8]} 47. Rxc2 {[%clk 0:00:22.3]}
47... Rxg6 {[%clk 0:00:15]} 48. Kg2 {[%clk 0:00:21.7]} 1-0

[Event "*** SCC Grand Prix: Titled Tuesday Blitz"]
[Site "Chess.com"]
[Date "2020.06.02"]
[Round "3"]
[White "CzechmVIII"]
[Black "imdvb6307"]
[Result "1-0"]
[WhiteElo "2173"]
[BlackElo "2372"]
[TimeControl "180+1"]
[EndTime "10:29:08 PDT"]
[Termination "CzechmVIII won by resignation"]

1. e4 {[%clk 0:03:00.9]} 1... Nc6 {[%clk 0:02:59.6]} 2. Nf3 {[%clk 0:03:00.5]}
2... d6 {[%clk 0:02:59.2]} 3. d4 {[%clk 0:03:00]} 3... Nf6 {[%clk 0:02:59.2]} 4.
Nc3 {[%clk 0:02:57.8]} 4... Bg4 {[%clk 0:02:58.8]} 5. d5 {[%clk 0:02:57.8]} 5...
Ne5 {[%clk 0:02:58.2]} 6. Nxe5 {[%clk 0:02:57.8]} 6... Bxd1 {[%clk 0:02:56]} 7.
Bb5+ {[%clk 0:02:55.8]} 7... c6 {[%clk 0:02:56.4]} 8. dxc6 {[%clk 0:02:54.6]}
8... dxe5 {[%clk 0:02:56.8]} 9. c7+ {[%clk 0:02:35.6]} 9... Qd7 {[%clk 0:02:54]}
10. Bxd7+ {[%clk 0:02:33.4]} 10... Nxd7 {[%clk 0:02:51.2]} 11. Kxd1 {[%clk
0:02:19.3]} 11... e6 {[%clk 0:02:49.3]} 12. Ke2 {[%clk 0:02:12.2]} 12... a6
{[%clk 0:02:39.1]} 13. Be3 {[%clk 0:01:52.1]} 13... Rc8 {[%clk 0:02:38.7]} 14.
Rad1 {[%clk 0:01:44.8]} 14... Rxc7 {[%clk 0:02:38.4]} 15. Rd3 {[%clk 0:01:45]}
15... Bb4 {[%clk 0:02:15.9]} 16. Rhd1 {[%clk 0:01:37]} 16... Ke7 {[%clk
0:02:16]} 17. Bd2 {[%clk 0:01:18.5]} 17... Nc5 {[%clk 0:00:26.6]} 18. Nd5+
{[%clk 0:01:14]} 18... exd5 {[%clk 0:00:26]} 19. Bxb4 {[%clk 0:01:14]} 19... d4
{[%clk 0:00:18.6]} 20. c3 {[%clk 0:01:04.1]} 20... Ke6 {[%clk 0:00:15.3]} 21.
Bxc5 {[%clk 0:01:03.8]} 21... Rxc5 {[%clk 0:00:15.3]} 22. cxd4 {[%clk
0:01:04.1]} 22... exd4 {[%clk 0:00:15.8]} 23. Rxd4 {[%clk 0:01:04.1]} 23... Rc2+
{[%clk 0:00:15.8]} 24. R1d2 {[%clk 0:01:03.7]} 24... Rxd2+ {[%clk 0:00:15.7]}
25. Kxd2 {[%clk 0:00:58.3]} 25... b5 {[%clk 0:00:15.8]} 26. Rd3 {[%clk
0:00:57.1]} 26... Rc8 {[%clk 0:00:15.1]} 27. f4 {[%clk 0:00:54.3]} 27... f6
{[%clk 0:00:15]} 28. g4 {[%clk 0:00:53.2]} 28... h6 {[%clk 0:00:14.3]} 29. Rc3
{[%clk 0:00:50.9]} 29... Rd8+ {[%clk 0:00:13.7]} 30. Rd3 {[%clk 0:00:51.3]}
30... Rc8 {[%clk 0:00:13.6]} 31. Rc3 {[%clk 0:00:49.2]} 31... Rd8+ {[%clk
0:00:13.7]} 32. Ke3 {[%clk 0:00:49.5]} 32... Rd6 {[%clk 0:00:13.7]} 33. Rd3
{[%clk 0:00:40.8]} 33... Rc6 {[%clk 0:00:12.7]} 34. Rc3 {[%clk 0:00:41.2]} 34...
Rd6 {[%clk 0:00:12.5]} 35. h4 {[%clk 0:00:38.3]} 35... g6 {[%clk 0:00:12]} 36.
f5+ {[%clk 0:00:34.3]} 36... gxf5 {[%clk 0:00:11.6]} 37. exf5+ {[%clk
0:00:34.6]} 37... Kd7 {[%clk 0:00:11.5]} 38. Rd3 {[%clk 0:00:34.3]} 38... Rxd3+
{[%clk 0:00:10.1]} 39. Kxd3 {[%clk 0:00:34.7]} 39... Kd6 {[%clk 0:00:09.8]} 40.
Kd4 {[%clk 0:00:35]} 40... Kc6 {[%clk 0:00:06.9]} 41. b4 {[%clk 0:00:22.9]}
41... Kd6 {[%clk 0:00:06.2]} 42. Ke4 {[%clk 0:00:23.3]} 42... Kc6 {[%clk
0:00:05.9]} 43. Kf4 {[%clk 0:00:22.4]} 43... Kd6 {[%clk 0:00:05.7]} 44. g5
{[%clk 0:00:22.7]} 44... fxg5+ {[%clk 0:00:05]} 45. hxg5 {[%clk 0:00:23.1]}
45... hxg5+ {[%clk 0:00:04.8]} 46. Kxg5 {[%clk 0:00:23.5]} 46... Ke7 {[%clk
0:00:04.3]} 47. f6+ {[%clk 0:00:22.8]} 47... Kf7 {[%clk 0:00:04.2]} 48. Kf5
{[%clk 0:00:23.2]} 48... Kf8 {[%clk 0:00:04]} 49. Ke6 {[%clk 0:00:23.5]} 1-0